bitfinex-derivatives/quotes_ETHF0:USTF0_20250115
["timestamp","ask_amount","ask_price","bid_price","bid_amount"]
[1736984918470,0.4403,3442.2,3442.0,0.58097]
[1736984919165,0.4403,3442.2,3441.8,0.4434]
[1736984919462,0.4403,3442.2,3442.0,0.58097]
[1736984922570,0.4403,3442.2,3442.0,0.58098]
[1736984924967,1.02125,3442.2,3442.0,0.58098]
[1736984927777,0.58096,3442.1,3442.0,0.58098]
[1736984929176,0.58097,3442.1,3442.0,0.58098]
[1736984929676,0.4403,3442.2,3441.8,0.4434]
[1736984929877,0.58097,3442.1,3442.0,0.58098]
[1736984931279,0.581,3442.0,3441.9,0.58099]
[1736984932580,2.73829272,3442.2,3441.8,0.4434]
[1736984932878,3.31925272,3442.2,3442.1,0.58096]
[1736984933079,1.02126,3442.2,3442.1,0.58096]
[1736984934181,3.2078,3442.8,3442.1,3.2078]
[1736984934387,0.58091,3442.5,3442.4,0.5809]
[1736984935179,2.73959272,3442.7,3442.3,0.4806]
[1736984935386,0.58089,3442.6,3442.5,0.58088]
[1736984935780,3.32047272,3442.7,3442.6,0.58088]
[1736984936180,0.5809,3442.6,3442.5,0.58089]
[1736984936384,2.73959272,3442.7,3442.4,0.4669]
[1736984936581,0.5809,3442.5,3442.4,1.0478]
[1736984936789,0.58091,3442.4,3442.3,0.4806]
[1736984936981,0.58095,3442.2,3442.1,3.78875]
[1736984937281,0.58095,3442.2,3442.1,3.2078]
[1736984937689,1.02825,3442.2,3442.1,3.2078]
[1736984937888,1.02825,3442.2,3442.0,0.58097]
[1736984937889,0.4473,3442.2,3442.0,0.58097]
[1736984938085,0.58097,3442.1,3442.0,0.58097]
[1736984939288,0.4473,3442.2,3441.8,0.9515]
[1736984939492,0.58089,3442.6,3442.5,0.5809]
[1736984940784,0.58091,3442.5,3442.4,0.5809]
[1736984940989,0.58089,3442.6,3442.5,0.58089]
[1736984941691,0.58091,3442.5,3442.4,0.58091]
[1736984942688,0.58092,3442.4,3442.3,0.58092]
[1736984942888,0.4473,3442.7,3442.0,3.2078]
[1736984943092,0.58093,3442.4,3442.3,0.58092]
[1736984944286,0.4473,3442.7,3442.0,3.2078]
[1736984944486,0.58091,3442.5,3442.4,0.5809]
[1736984947588,0.4473,3442.7,3442.0,3.2078]
[1736984947890,0.5809,3442.5,3442.4,0.58092]
[1736984948492,0.4473,3442.7,3442.0,3.2078]
[1736984948692,0.58091,3442.5,3442.4,0.5809]
[1736984949295,0.4473,3442.7,3442.0,3.2078]
[1736984949595,0.58091,3442.5,3442.4,0.58091]
[1736984950588,0.4473,3442.7,3442.0,3.2078]
[1736984950790,0.58092,3442.4,3442.3,0.58092]
[1736984952590,2.29799272,3442.6,3442.0,3.2078]
[1736984952898,0.58097,3442.1,3442.0,3.2078]
[1736984953397,0.58098,3442.0,3441.9,0.58099]
[1736984954998,0.58097,3442.1,3442.0,0.58097]
[1736984957196,1.03447,3442.2,3441.9,0.581]
[1736984957501,0.58097,3442.1,3442.0,0.58097]
[1736984958001,0.58098,3442.0,3441.9,1.03159]
[1736984959598,0.58097,3442.1,3442.0,0.58098]
[1736984960802,0.4535,3442.2,3441.9,0.4506]
[1736984961007,0.58098,3442.0,3441.9,1.03159]
[1736984963709,0.4535,3442.2,3441.9,0.4506]
[1736984963911,0.58098,3442.1,3442.0,0.58098]
[1736984965405,1.59430048,3442.1,3442.0,0.58098]
[1736984965808,0.58098,3442.0,3441.9,1.03159]
[1736984968015,1.59430048,3442.1,3442.0,0.58098]
[1736984968719,0.58098,3442.0,3441.9,1.03159]
[1736984969410,0.58098,3442.1,3442.0,0.58097]
[1736984971010,0.58098,3442.0,3441.9,1.03159]
[1736984971611,0.58097,3442.1,3442.0,0.58098]
[1736984972110,0.9074,3442.5,3441.9,3.6584]
[1736984972316,0.58093,3442.4,3442.3,0.58092]
[1736984973305,0.58093,3442.3,3442.2,1.02545]
[1736984973511,1.59425048,3442.3,3442.2,1.02545]
[1736984973912,0.58098,3442.0,3441.9,3.78879]
[1736984974119,1.59430048,3442.0,3441.9,3.78879]
[1736984976213,1.01332048,3442.0,3441.5,3.2078]
[1736984976514,1.01332048,3441.6,3441.5,3.78887]
[1736984977715,0.5811,3441.4,3441.3,0.58109]
[1736984977916,1.01332048,3441.4,3441.3,0.58109]
[1736984978218,1.59441048,3441.4,3441.3,0.58109]
[1736984978418,2.03511048,3441.4,3441.3,0.58109]
[1736984978619,1.45402048,3441.4,3441.2,0.4655]
[1736984978819,0.5811,3441.3,3441.2,1.04662]
[1736984979524,0.5811,3441.3,3441.2,0.4655]
[1736984980215,0.5811,3441.3,3441.2,0.58112]
[1736984980425,1.4596,3441.3,3441.2,0.58112]
[1736984981225,0.8785,3441.3,3441.2,0.58112]
[1736984981518,1.4596,3441.3,3441.1,3.2078]
[1736984981720,1.4596,3441.3,3441.2,0.58112]
[1736984982123,0.8785,3441.3,3441.1,3.2078]
[1736984982317,0.58112,3441.2,3441.1,3.2078]
[1736984982822,0.58112,3441.2,3441.1,3.78894]
[1736984986221,1.89182048,3441.3,3441.1,3.78894]
[1736984986422,2.47293048,3441.3,3441.1,3.78894]
[1736984986622,1.45961,3441.3,3441.1,4.80226048]
[1736984986820,1.45961,3441.3,3441.1,3.78894]
[1736984987131,1.45962,3441.3,3441.1,3.78894]
[1736984987430,0.58112,3441.2,3441.1,3.78894]
[1736984987730,1.89182048,3441.3,3441.1,3.2078]
[1736984987929,0.58112,3441.2,3441.1,3.2078]
[1736984990032,0.58112,3441.2,3441.1,3.78894]
[1736984991324,0.58112,3441.2,3441.1,3.2078]
[1736984991927,0.58112,3441.2,3441.1,3.78894]
[1736984992542,0.8785,3441.3,3441.1,3.2078]
[1736984992731,0.58112,3441.3,3441.2,0.58112]
[1736984992931,0.58112,3441.3,3441.2,1.03282]
[1736984993135,0.5811,3441.4,3441.3,0.58109]
[1736984993441,0.58108,3441.5,3441.4,0.58109]
[1736984993935,0.58111,3441.3,3441.2,1.03281]
[1736984994334,1.01332048,3441.4,3441.0,0.9333]
[1736984994538,0.58114,3441.1,3441.0,0.4821]
[1736984995840,0.58114,3441.1,3441.0,1.06326]
[1736984996139,1.3727,3441.2,3441.0,1.06326]
[1736984996640,1.95383,3441.2,3441.0,1.06326]
[1736984996942,0.58114,3441.1,3441.0,1.06326]
[1736985000039,1.3727,3441.2,3441.0,0.4821]
[1736985000335,0.58114,3441.1,3441.0,1.06325]
[1736985002443,1.95383,3441.2,3441.1,0.58114]
[1736985002633,0.58114,3441.1,3441.0,1.06325]
[1736985003033,1.95383,3441.2,3441.1,0.58114]
[1736985004143,3.2078,3441.9,3441.1,4.22112048]
[1736985004343,1.3474,3441.6,3441.1,4.67152048]
[1736985004547,0.58112,3441.2,3441.1,5.25265048]
[1736985004843,0.58112,3441.2,3441.1,46.05265048]
[1736985005538,0.58112,3441.3,3441.2,0.58112]
[1736985006039,3.2078,3441.9,3441.8,0.58102]
[1736985006437,1.59429048,3442.2,3441.7,1.01332048]
[1736985006636,1.59429048,3442.2,3442.1,0.58097]
[1736985007040,1.01332048,3442.2,3441.8,1.3477]
[1736985007242,1.59429048,3442.2,3442.0,0.58098]
[1736985007442,0.58097,3442.2,3442.0,0.58098]
[1736985008043,0.58093,3442.4,3442.3,0.58094]
[1736985008244,0.936,3442.6,3441.9,3.2078]
[1736985008547,0.58095,3442.3,3442.2,0.58095]
[1736985008734,0.936,3442.6,3442.2,0.58095]
[1736985008940,0.58094,3442.3,3442.2,0.58095]
[1736985009138,0.58095,3442.3,3442.2,0.58095]
[1736985009343,0.58093,3442.4,3442.3,0.58094]
[1736985010345,0.936,3442.6,3442.3,0.58094]
[1736985010545,0.58094,3442.4,3442.3,0.58094]
[1736985012738,0.58095,3442.3,3442.2,0.58095]
[1736985012938,0.58094,3442.4,3442.2,0.58095]
[1736985013149,0.936,3442.6,3442.2,0.58095]
[1736985013449,0.58094,3442.3,3442.2,0.58095]
[1736985013750,0.58093,3442.4,3442.3,0.58093]
[1736985015440,0.936,3442.6,3441.9,3.2078]
[1736985015640,0.58094,3442.4,3441.9,3.2078]
[1736985015842,0.58094,3442.3,3442.2,0.58095]
[1736985016150,0.58093,3442.4,3442.3,0.58093]
[1736985016645,0.936,3442.6,3441.9,3.2078]
[1736985016850,0.58093,3442.4,3442.3,0.58093]
[1736985017050,0.58096,3442.2,3442.1,0.58097]
[1736985017549,0.58095,3442.3,3442.2,0.58095]
[1736985017745,0.4523,3442.5,3441.9,3.2078]
[1736985018251,0.58097,3442.2,3442.1,0.58096]
[1736985018551,0.58095,3442.3,3442.2,0.58095]
[1736985019351,0.4523,3442.5,3441.9,3.2078]
[1736985019555,0.58094,3442.3,3442.2,0.58095]
[1736985019953,2.30521478,3442.9,3441.9,3.2078]
[1736985020250,0.58093,3442.4,3442.3,0.58093]
[1736985020447,0.4826,3442.5,3441.9,3.2078]
[1736985020650,0.58093,3442.4,3442.3,0.58093]
[1736985021244,1.06351,3442.5,3442.4,0.58092]
[1736985021445,0.4826,3442.5,3441.9,3.2078]
[1736985021747,0.58093,3442.4,3442.3,0.58093]
[1736985022752,0.4826,3442.5,3441.9,3.2078]
[1736985022947,0.58092,3442.4,3442.3,0.58094]
[1736985023851,0.4826,3442.5,3441.9,3.2078]
[1736985023852,0.58095,3442.3,3442.2,0.58094]
[1736985024956,0.4826,3442.5,3441.9,3.2078]
[1736985025151,0.58094,3442.4,3442.3,0.58093]
[1736985026048,0.58095,3442.3,3442.2,0.58095]
[1736985026955,0.58096,3442.2,3442.1,0.58097]
[1736985027157,0.58095,3442.3,3442.2,0.58095]
[1736985027550,1.01310119,3442.8,3442.1,1.01310119]
[1736985027858,0.58093,3442.4,3442.3,1.59403119]
[1736985028351,0.58093,3442.4,3442.3,1.59404119]
[1736985028955,0.58093,3442.4,3442.3,1.01310119]
[1736985029154,0.58093,3442.4,3442.3,1.59404119]
[1736985029657,0.58093,3442.4,3442.3,1.01310119]
[1736985030250,0.58093,3442.4,3442.3,1.59404119]
[1736985030961,0.58093,3442.4,3442.3,1.01310119]
[1736985033362,0.58096,3442.2,3442.1,1.59407119]
[1736985033562,0.58099,3442.0,3441.9,3.7888]
[1736985033868,0.58098,3442.1,3442.0,0.58098]
[1736985034053,0.58098,3442.1,3442.0,1.59408119]
[1736985034654,0.4804,3442.4,3442.3,0.58094]
[1736985034962,0.58088,3442.7,3442.6,0.58088]
[1736985035147,0.58088,3442.7,3442.6,1.59398119]
[1736985035652,0.4427,3443.2,3442.6,1.01310119]
[1736985035951,0.4427,3443.2,3443.0,1.01310119]
[1736985036149,0.58081,3443.1,3443.0,1.01310119]
[1736985036361,0.58081,3443.1,3443.0,1.46250119]
[1736985037260,5.13820119,3443.4,3442.8,1.59395119]
[1736985037458,0.58082,3443.0,3442.9,0.4656]
[1736985038560,0.58082,3443.0,3442.9,1.04644]
[1736985039063,0.58084,3443.0,3442.9,0.4656]
[1736985039461,0.58084,3443.0,3442.9,1.04646]
[1736985039762,0.58084,3443.0,3442.9,0.4656]
[1736985041266,0.58089,3442.7,3442.5,0.4711]
[1736985041461,0.58089,3442.7,3442.6,1.03839]
[1736985041661,0.58089,3442.7,3442.6,0.4575]
[1736985041859,0.4644,3443.1,3442.4,0.4724]
[1736985042072,0.58091,3442.5,3442.4,0.4575]
[1736985042475,1.04531,3442.5,3442.4,1.03842]
[1736985042874,1.04531,3442.5,3442.4,0.4575]
[1736985043969,1.04531,3442.5,3442.4,1.03842]
[1736985044176,1.04531,3442.5,3442.4,0.4575]
[1736985045470,0.58096,3442.2,3442.1,1.05847]
[1736985047478,1.04074,3442.4,3442.2,0.58095]
[1736985047778,0.4598,3442.4,3442.1,0.4775]
[1736985047976,0.58096,3442.2,3442.1,1.05847]
[1736985048374,0.58095,3442.3,3442.1,1.05847]
[1736985048880,0.4598,3442.4,3442.1,1.05847]
[1736985049080,0.58096,3442.2,3442.1,0.4775]
[1736985049377,0.58095,3442.3,3442.1,0.4775]
[1736985049581,0.58095,3442.3,3442.2,0.58096]
[1736985049882,0.58095,3442.3,3442.1,0.4775]
[1736985049883,0.58095,3442.3,3442.1,1.05847]
[1736985050377,0.4598,3442.4,3442.2,0.58095]
[1736985050575,1.04074,3442.4,3442.2,0.58095]
[1736985050777,0.58094,3442.3,3442.1,1.05846]
[1736985051572,0.4598,3442.4,3442.1,0.4775]
[1736985051778,0.58095,3442.3,3442.2,0.58096]
[1736985052186,0.58095,3442.3,3442.1,1.05847]
[1736985052572,0.58095,3442.3,3442.1,0.4775]
[1736985052776,0.58095,3442.3,3442.2,0.58096]
[1736985053384,0.4598,3442.4,3442.1,0.4775]
[1736985053581,0.4598,3442.4,3442.2,0.58096]
[1736985053582,1.04073,3442.4,3442.2,0.58096]
[1736985053782,1.04073,3442.4,3442.3,0.58094]
[1736985054082,0.4384,3442.6,3442.1,0.4775]
[1736985054286,0.4384,3442.6,3442.5,0.58091]
[1736985054481,3.2078,3442.9,3442.3,3.2078]
[1736985054681,0.58078,3443.3,3443.2,0.58079]
[1736985055083,0.58078,3443.3,3443.2,40.8]
[1736985055084,1.05368,3443.3,3443.2,40.8]
[1736985055283,3.35749884,3443.3,3443.2,40.8]
[1736985055587,0.5808,3443.2,3443.0,0.58082]
[1736985055777,1.4783,3443.2,3443.0,0.58082]
[1736985055978,1.4783,3443.2,3443.1,0.58081]
[1736985056183,0.8975,3443.2,3443.1,0.58081]
[1736985056786,1.4783,3443.2,3443.0,0.58081]
[1736985057090,1.4783,3443.2,3442.7,44.0078]
[1736985057293,1.4783,3443.2,3443.0,0.58081]
[1736985057592,0.8975,3443.2,3442.7,44.0078]
[1736985057787,2.30381884,3443.0,3442.3,3.2078]
[1736985057994,0.5809,3442.6,3442.4,0.58091]
[1736985058192,0.58091,3442.5,3442.4,0.58091]
[1736985058389,0.58092,3442.4,3442.3,3.6546]
[1736985058585,0.58092,3442.4,3442.3,4.23553]
[1736985058788,0.58092,3442.4,3442.3,3.6546]
[1736985058990,2.30381884,3442.4,3441.9,4.1422]
[1736985059197,0.58096,3442.2,3441.9,4.2667]
[1736985059489,2.30381884,3442.1,3441.9,44.0078]
[1736985059696,0.58099,3442.0,3441.9,3.2078]
[1736985059994,0.58099,3442.0,3441.5,1.05867]
[1736985060299,0.58106,3441.6,3441.4,3.78889]
[1736985060487,0.58108,3441.5,3441.4,3.2078]
[1736985060992,0.58108,3441.5,3441.3,0.9388]
[1736985060993,0.58109,3441.4,3441.3,0.9388]
[1736985061193,0.58109,3441.4,3441.3,0.4779]
[1736985061495,0.58114,3441.1,3441.0,3.2078]
[1736985062195,1.48674,3441.1,3441.0,3.2078]
[1736985063198,0.9056,3441.1,3441.0,3.2078]
[1736985063694,0.9056,3441.1,3441.0,3.78896]
[1736985063891,0.9056,3441.1,3441.0,3.2078]
[1736985066191,0.9056,3441.1,3441.0,3.78896]
[1736985066896,0.9056,3441.1,3441.0,3.2078]
[1736985067891,0.9056,3441.1,3441.0,3.78896]
[1736985068694,1.48674,3441.1,3441.0,3.2078]
[1736985068895,0.9056,3441.1,3441.0,3.2078]
[1736985069199,0.9056,3441.1,3440.9,3.78897]
[1736985069500,1.48675,3441.1,3440.9,3.2078]
[1736985069690,1.48675,3441.1,3440.9,3.78897]
[1736985069993,1.48675,3441.1,3440.9,3.2078]
[1736985070294,1.48675,3441.1,3440.9,3.78897]
[1736985070498,0.9056,3441.1,3441.0,0.58116]
[1736985071295,1.48674,3441.1,3440.9,3.78897]
[1736985071500,0.9056,3441.1,3440.9,3.2078]
[1736985071800,0.9056,3441.1,3441.0,0.58116]
[1736985072003,0.9056,3441.1,3440.9,3.78897]
[1736985072195,0.9056,3441.1,3440.9,3.2078]
[1736985072399,0.9056,3441.1,3441.0,0.58116]
[1736985072905,3.6683,3441.7,3440.9,3.2078]
[1736985073099,0.5811,3441.4,3441.2,0.58112]
[1736985073396,0.58108,3441.5,3441.3,0.58111]
[1736985073600,0.4376,3441.6,3441.1,0.4683]
[1736985073802,0.58108,3441.5,3441.2,0.58112]
[1736985074005,0.58108,3441.5,3441.1,0.4683]
[1736985074199,0.4376,3441.6,3441.1,0.4683]
[1736985074700,1.01867,3441.6,3441.3,0.5811]
[1736985075000,1.01867,3441.6,3441.4,0.58109]
[1736985075398,0.4376,3441.6,3441.5,0.58108]
[1736985075599,3.2078,3441.7,3441.6,0.58106]
[1736985075898,2.74581884,3442.1,3441.4,3.2078]
[1736985076098,2.74581884,3442.1,3442.0,0.58099]
[1736985076302,2.74581884,3442.1,3441.9,0.581]
[1736985078199,0.58097,3442.1,3442.0,0.58099]
[1736985078603,3.2078,3442.2,3442.1,0.58097]
[1736985078604,0.58096,3442.2,3442.1,0.58097]
[1736985078805,0.4713,3442.3,3442.2,0.58096]
[1736985079006,2.30381884,3442.8,3442.2,3.2078]
[1736985079311,2.30381884,3442.8,3442.3,0.4531]
[1736985079607,0.8962,3442.9,3442.8,0.58086]
[1736985079807,5.51161884,3443.0,3442.4,0.941]
[1736985080003,0.58085,3442.9,3442.4,0.941]
[1736985080207,6.09244884,3443.0,3442.9,0.58084]
[1736985080407,5.51161884,3443.0,3442.8,0.58085]
[1736985080608,0.58084,3442.9,3442.8,0.58085]
[1736985080803,6.09244884,3443.0,3442.4,0.941]
[1736985081104,6.09244884,3443.0,3442.7,0.58086]
[1736985081609,2.88464884,3443.0,3442.7,0.58086]
[1736985081800,2.30381884,3443.0,3442.7,0.58086]
[1736985081997,2.88464884,3443.0,3442.8,0.58086]
[1736985083005,2.30381884,3443.0,3442.9,0.58084]
[1736985083206,0.9167,3443.3,3442.6,3.2078]
[1736985083207,3.22051884,3443.3,3442.6,3.2078]
[1736985083407,0.5808,3443.2,3442.9,0.58083]
[1736985083816,0.5808,3443.2,3443.0,0.58082]
[1736985084001,3.22051884,3443.3,3442.6,3.2078]
[1736985084201,0.5808,3443.2,3442.9,0.58083]
[1736985085005,3.22051884,3443.3,3442.6,3.2078]
[1736985085205,0.9167,3443.3,3442.6,3.2078]
[1736985085410,0.5808,3443.2,3442.9,0.58083]
[1736985087509,3.22051884,3443.3,3442.9,0.58083]
[1736985087707,0.5808,3443.2,3442.9,0.58083]
[1736985087904,3.22051884,3443.3,3442.9,0.58083]
[1736985088110,0.58079,3443.2,3442.9,0.58083]
[1736985091511,0.58082,3443.1,3442.9,0.58084]
[1736985091710,0.58082,3443.1,3442.6,3.2078]
[1736985091913,0.58082,3443.1,3442.8,0.58084]
[1736985092315,3.22051884,3443.3,3442.9,0.58082]
[1736985092316,0.5808,3443.2,3442.9,0.58082]
[1736985093111,0.58081,3443.1,3442.9,0.58082]
[1736985094904,0.9167,3443.3,3442.6,44.0078]
[1736985095109,0.9167,3443.3,3443.0,0.58081]
[1736985095313,0.58079,3443.2,3443.0,0.58081]
[1736985095817,0.58081,3443.1,3442.9,0.58083]
[1736985096011,0.58081,3443.1,3442.6,44.0078]
[1736985096313,0.5808,3443.2,3443.0,0.58081]
[1736985097417,0.58081,3443.1,3442.6,44.0078]
[1736985097612,0.5808,3443.2,3443.0,0.58082]
[1736985098310,0.9167,3443.3,3442.6,44.0078]
[1736985098512,0.9167,3443.3,3442.6,45.46003]
[1736985098710,0.5808,3443.2,3443.0,0.58082]
[1736985098911,0.9167,3443.3,3443.0,0.58082]
[1736985099113,0.58081,3443.1,3443.0,0.58082]
[1736985100015,0.4513,3443.5,3443.0,5.51161884]
[1736985100211,0.58074,3443.5,3443.4,3.2078]
[1736985100410,0.9362,3443.7,3443.4,3.2078]
[1736985100614,0.58074,3443.5,3443.4,3.2078]
[1736985100919,0.58074,3443.5,3443.3,0.58076]
[1736985101622,0.9362,3443.7,3443.3,0.58077]
[1736985101623,0.58076,3443.4,3443.3,0.58077]
[1736985101819,0.58075,3443.5,3443.3,0.58077]
[1736985102019,0.4839,3443.4,3443.1,1.3767]
[1736985102228,0.4839,3443.4,3443.2,0.58077]
[1736985102522,0.4839,3443.4,3443.3,0.58077]
[1736985104425,0.4839,3443.4,3443.1,0.4511]
[1736985104623,0.4839,3443.4,3443.3,0.58077]
[1736985105919,1.51692,3443.7,3443.1,0.4511]
[1736985106127,1.95812,3443.7,3443.5,0.58074]
[1736985106520,1.95812,3443.7,3443.4,3.2078]
[1736985106825,1.95812,3443.7,3443.6,0.58073]
[1736985107026,1.95812,3443.7,3443.4,3.2078]
[1736985107027,1.3774,3443.7,3443.4,3.2078]
[1736985107217,1.95812,3443.7,3443.6,0.58073]
[1736985108029,1.3774,3443.7,3443.4,3.2078]
[1736985108325,1.3774,3443.7,3443.6,0.58071]
[1736985108723,1.9581,3443.7,3443.6,0.58071]
[1736985109930,0.58071,3443.6,3443.5,0.58072]
[1736985110824,0.58072,3443.6,3443.5,0.58073]
[1736985111024,0.58073,3443.5,3443.4,3.78854]
[1736985114226,2.30381884,3443.6,3443.4,3.2078]
[1736985114434,2.30381884,3443.6,3443.5,0.58073]
[1736985114826,0.58071,3443.6,3443.5,0.58073]
[1736985116722,1.3774,3443.7,3443.5,0.58073]
[1736985117332,0.58071,3443.6,3443.5,0.58073]
[1736985117926,1.95811,3443.7,3443.5,0.58073]
[1736985118129,0.58067,3443.9,3443.8,0.58068]
[1736985118331,1.3755,3444.1,3443.5,0.9117]
[1736985118626,0.9151,3444.1,3443.8,3.2078]
[1736985118832,0.4486,3444.5,3443.8,3.2078]
[1736985119034,0.4486,3444.5,3443.6,2.74581884]
[1736985119035,2.77031884,3444.8,3444.3,3.2078]
[1736985119234,3.21891884,3444.8,3444.4,41.242]
[1736985119434,0.58055,3444.6,3444.5,0.58055]
[1736985120534,3.21891884,3444.8,3444.4,0.442]
[1736985120929,6.27631,3445.3,3444.7,3.2078]
[1736985120930,2.30381884,3445.1,3444.7,3.2078]
[1736985121135,0.58046,3445.1,3445.0,0.58048]
[1736985121833,0.913,3445.2,3445.1,0.58046]
[1736985122036,1.49345,3445.2,3444.8,0.4444]
[1736985122236,1.49345,3445.2,3445.0,0.58046]
[1736985122641,1.49345,3445.2,3445.1,0.58046]
[1736985122938,0.913,3445.2,3445.1,0.58046]
[1736985124038,1.49345,3445.2,3445.0,0.58047]
[1736985124234,1.49345,3445.2,3444.8,0.4444]
[1736985124540,1.49345,3445.2,3445.0,0.58046]
[1736985124738,1.49345,3445.2,3445.0,0.58048]
[1736985124940,0.913,3445.2,3444.8,0.4444]
[1736985125139,0.913,3445.2,3445.1,0.58046]
[1736985125534,3.21681884,3445.2,3444.8,0.4444]
[1736985125737,3.21681884,3445.2,3444.7,3.6734]
[1736985125738,0.58051,3444.8,3444.7,3.2078]
[1736985125942,2.88431884,3444.9,3444.7,3.78832]
[1736985126542,0.58051,3444.8,3444.7,3.78832]
[1736985126741,0.58051,3444.8,3444.7,3.2078]
[1736985127447,0.58051,3444.8,3444.7,3.78833]
[1736985127847,0.58051,3444.8,3444.7,3.2078]
[1736985128241,3.21681884,3445.2,3444.7,3.2078]
[1736985128643,0.58049,3445.0,3444.8,0.5805]
[1736985129347,3.21681884,3445.2,3444.7,3.2078]
[1736985129547,0.58048,3445.0,3444.8,0.58051]
[1736985129943,3.21681884,3445.2,3444.7,3.2078]
[1736985130142,0.58051,3444.9,3444.8,0.58051]
[1736985130441,0.58048,3445.0,3444.7,3.2078]
[1736985130648,0.58048,3445.0,3444.8,0.5805]
[1736985131144,3.21681884,3445.2,3444.7,3.2078]
[1736985131349,0.58051,3444.8,3444.7,3.78832]
[1736985131952,0.5805,3444.9,3444.7,3.78832]
[1736985133041,0.58051,3444.8,3444.7,3.2078]
[1736985133246,2.30381884,3444.9,3444.4,1.02257]
[1736985133449,2.30381884,3444.6,3444.4,0.442]
[1736985133752,0.58054,3444.7,3444.6,0.58054]
[1736985134346,0.58054,3444.7,3444.4,0.442]
[1736985134551,0.58054,3444.7,3444.5,0.58056]
[1736985135050,0.58054,3444.7,3444.5,41.38056]
[1736985135247,2.30381884,3444.9,3444.5,40.8]
[1736985135547,0.58053,3444.7,3444.6,0.58054]
[1736985135754,0.58053,3444.7,3444.5,40.8]
[1736985135755,0.58052,3444.8,3444.7,0.58053]
[1736985138450,2.88432884,3444.9,3444.6,0.58055]
[1736985138647,2.88432884,3444.9,3444.7,0.58052]
[1736985138848,2.88432884,3444.9,3444.8,0.58051]
[1736985140053,0.5805,3444.9,3444.8,0.58051]
[1736985141255,0.913,3445.2,3444.7,3.2078]
[1736985141550,0.58047,3445.1,3445.0,0.58047]
[1736985142156,0.913,3445.2,3444.9,0.4377]
[1736985142355,0.58048,3445.0,3444.9,0.4377]
[1736985142556,0.58048,3445.0,3444.9,1.0182]
[1736985142756,0.58048,3445.0,3444.9,0.4377]
[1736985142958,0.5805,3445.0,3444.8,0.5805]
[1736985143362,3.21681884,3445.2,3444.8,0.5805]
[1736985143553,0.5805,3444.9,3444.8,0.5805]
[1736985143953,3.21681884,3445.2,3444.7,3.2078]
[1736985144257,0.58058,3444.4,3444.3,0.5806]
[1736985144451,2.30381884,3444.9,3444.2,3.2078]
[1736985144760,0.58056,3444.6,3444.5,0.58056]
[1736985145451,0.58058,3444.4,3444.3,41.38059]
[1736985145654,1.51987,3444.5,3444.4,0.58058]
[1736985146561,0.9393,3444.5,3444.4,0.58058]
[1736985146759,0.58058,3444.4,3444.3,0.58059]
[1736985147059,0.4456,3444.4,3444.3,0.58059]
[1736985147859,1.02618,3444.4,3444.3,0.58059]
[1736985148061,0.4456,3444.4,3444.3,0.58059]
[1736985150555,1.02618,3444.4,3444.3,0.58059]
[1736985150755,0.4456,3444.4,3444.3,0.58059]
[1736985151262,1.02618,3444.4,3444.3,0.58059]
[1736985151866,0.4456,3444.4,3444.3,0.58059]
[1736985154559,0.58062,3444.2,3444.1,3.2078]
[1736985154861,2.39074,3444.5,3444.3,0.5806]
[1736985154862,1.51988,3444.5,3444.3,0.5806]
[1736985155061,0.9393,3444.5,3444.2,1.54261]
[1736985155252,0.58058,3444.4,3444.2,2.01541]
[1736985155457,0.58058,3444.4,3444.3,0.5806]
[1736985155856,0.58058,3444.4,3444.2,2.01541]
[1736985156057,2.88441884,3444.3,3444.1,3.2078]
[1736985156268,0.58062,3444.2,3444.1,3.2078]
[1736985157359,2.75441884,3444.3,3443.8,0.4605]
[1736985157559,0.58062,3444.2,3444.1,0.58063]
[1736985157861,0.58064,3444.1,3444.0,0.58064]
[1736985158663,2.75441884,3444.3,3443.8,0.4605]
[1736985158857,2.30381884,3444.0,3443.8,0.4605]
[1736985159060,0.58069,3443.8,3443.7,0.5807]
[1736985159261,0.58069,3443.8,3443.5,3.2078]
[1736985159262,0.58071,3443.7,3443.6,0.58071]
[1736985159465,0.9457,3443.9,3443.5,3.2078]
[1736985159760,0.58069,3443.8,3443.7,0.5807]
[1736985161371,1.52638,3443.9,3443.7,0.5807]
[1736985161668,0.58068,3443.8,3443.7,0.5807]
[1736985161857,0.9457,3443.9,3443.6,0.58071]
[1736985162058,2.30381884,3443.7,3443.5,3.2078]
[1736985162263,0.58074,3443.5,3443.4,0.58074]
[1736985162564,0.4551,3443.6,3443.4,0.58074]
[1736985162769,1.03583,3443.6,3443.4,0.58074]
[1736985163263,0.4551,3443.6,3443.2,1.3653]
[1736985163668,1.03582,3443.6,3443.5,0.58074]
[1736985165070,0.4551,3443.6,3443.2,1.3653]
[1736985165269,0.58074,3443.5,3443.3,0.58076]
[1736985165768,0.4773,3443.4,3443.3,0.58076]
[1736985168871,0.58077,3443.3,3443.2,1.02257]
[1736985169073,1.05806,3443.4,3443.3,0.58077]
[1736985169268,0.4773,3443.4,3443.3,0.58077]
[1736985169473,0.4551,3443.6,3443.5,0.58074]
[1736985169766,1.03582,3443.6,3443.5,3.78854]
[1736985171882,0.4525,3443.8,3443.7,0.5807]
[1736985172875,1.0332,3443.8,3443.7,0.5807]
[1736985174378,0.58071,3443.7,3443.6,0.5807]
[1736985175780,0.4525,3443.8,3443.5,3.6478]
[1736985175987,1.03319,3443.8,3443.7,0.5807]
[1736985176575,0.4525,3443.8,3443.7,0.5807]
[1736985177379,2.76491884,3443.9,3443.8,0.58069]